[Event "37th Zalakaros Festival 2018"]
[Site "Zalakaros"]
[Date "2018.05.29"]
[Round "5"]
[White "Suta, Andraz"]
[Black "Tompa, Janos"]
[Result "0-1"]
[ECO "B40"]
[WhiteElo "2212"]
[BlackElo "2372"]
[Annotator "NA"]
[PlyCount "62"]
[EventDate "2018.??.??"]
[EventType "swiss"]
[EventCountry "HUN"]
[SourceTitle "playchess.com"]
[Source "ChessBase"]
[SourceQuality "1"]
[TimeControl "40/5400+30:1800+30"]

1. e4 {[%emt 0:00:03]} c5 {[%emt 0:00:41]} 2. Nf3 {[%emt 0:00:05]} e6 {[%emt 0:00:10]} 3. d4 {[%emt 0:00:04]} cxd4 {[%emt 0:00:06]} 4. Nxd4 {[%emt 0:00:03]} Bc5 {[%emt 0:00:08]} 5. Nb3 {[%emt 0:04:14]} Bb6 {[%emt 0:00:49]} 6. Bd3 {[%emt 0:02:05]} Ne7 {[%emt 0:00:29]} 7. Qe2 {[%emt 0:04:19]} Nbc6 {[%emt 0:04:01]} 8. Nc3 {[%emt 0:14:23]} O-O {[%emt 0:04:50]} 9. Be3 {[%emt 0:07:19]} f5 {[%emt 0:12:16]} 10. Bxb6 {[%emt 0:14:39]} Qxb6 {[%emt 0:00:12]} 11. exf5 {[%emt 0:00:18]} Nxf5 {[%emt 0:00:18]} 12. O-O-O {[%emt 0:00:24]} Nb4 {[%emt 0:15:42]} 13. g3 {[%emt 0:10:46]} Nxd3+ {[%emt 0:07:12]} 14. Rxd3 {[%emt 0:01:30]} a5 {[%emt 0:01:00]} 15. a3 {[%emt 0:10:09]} d5 {[%emt 0:02:58]} 16. Rhd1 {[%emt 0:01:50]} Bd7 {[%emt 0:00:53]} 17. f4 {[%emt 0:01:26]} Rac8 {[%emt 0:04:47]} 18. g4 {[%emt 0:02:46]} Nd6 {[%emt 0:03:15]} 19. f5 {[%emt 0:01:12]} Nc4 {[%emt 0:00:26]} 20. fxe6 {[%emt 0:00:43]} Bxe6 {[%emt 0:01:21]} 21. a4 {[%emt 0:08:59]} Rf2 {[%emt 0:19:36]} 22. Qe1 {[%emt 0:00:36]} Rxh2 {[%emt 0:00:30]} 23. Nxd5 {[%emt 0:02:11]} Bxd5 {[%emt 0:00:15]} 24. Rxd5 {[%emt 0:02:58]} Ne3 {[%emt 0:02:48]} 25. R5d2 {[%emt 0:03:23]} Rxc2+ {[%emt 0:00:55]} 26. Kb1 {[%emt 0:01:03]} Rhxd2 {[%emt 0:00:38]} 27. Rxd2 {[%emt 0:00:46]} Qxb3 {[%emt 0:00:08]} 28. Rxc2 {[%emt 0:00:08]} Qxc2+ {[%emt 0:00:07]} 29. Ka2 {[%emt 0:00:06]} Qxa4+ {[%emt 0:00:16]} 30. Kb1 {[%emt 0:00:04]} Qd1+ {[%emt 0:00:32]} 31. Ka2 {[%emt 0:00:05]} Qxe1 {[%emt 0:00:06]} 0-1

[Event "37th Zalakaros Festival 2018"]
[Site "Zalakaros"]
[Date "2018.05.29"]
[Round "5"]
[White "Karacsonyi, Gellert"]
[Black "Zentai, Peter"]
[Result "1-0"]
[ECO "C02"]
[WhiteElo "2208"]
[BlackElo "2327"]
[Annotator "NA"]
[PlyCount "47"]
[EventDate "2018.??.??"]
[EventType "swiss"]
[EventCountry "HUN"]
[SourceTitle "playchess.com"]
[Source "ChessBase"]
[SourceQuality "1"]
[TimeControl "40/5400+30:1800+30"]

1. e4 {[%emt 0:00:02]} e6 {[%emt 0:01:02]} 2. d4 {[%emt 0:00:07]} d5 {[%emt 0:00:03]} 3. e5 {[%emt 0:00:09]} c5 {[%emt 0:00:05]} 4. c3 {[%emt 0:00:05]} Nc6 {[%emt 0:00:26]} 5. Nf3 {[%emt 0:00:06]} Bd7 {[%emt 0:01:08]} 6. Be2 {[%emt 0:02:08]} f6 {[%emt 0:01:27]} 7. O-O {[%emt 0:01:41]} fxe5 {[%emt 0:01:14]} 8. Nxe5 {[%emt 0:03:08]} Nxe5 {[%emt 0:00:47]} 9. dxe5 {[%emt 0:00:13]} Qc7 {[%emt 0:01:31]} 10. Bf4 {[%emt 0:02:39]} O-O-O {[%emt 0:02:29]} 11. b4 {[%emt 0:04:51]} Ne7 {[%emt 0:06:14]} 12. bxc5 {[%emt 0:19:13]} Ng6 {[%emt 0:31:33]} 13. Bg3 {[%emt 0:01:07]} Bxc5 {[%emt 0:03:32]} 14. Nd2 {[%emt 0:00:53]} Nxe5 {[%emt 0:12:07]} 15. c4 {[%emt 0:01:52]} Bc6 {[%emt 0:01:05]} 16. cxd5 {[%emt 0:02:48]} exd5 {[%emt 0:02:45]} 17. Nb3 {[%emt 0:01:02]} Bd6 {[%emt 0:00:14]} 18. Nd4 {[%emt 0:00:39]} Rde8 {[%emt 0:04:41]} 19. Rc1 {[%emt 0:03:59]} Kb8 {[%emt 0:04:04]} 20. Bb5 {[%emt 0:06:03]} Rc8 {[%emt 0:17:13]} 21. Bxc6 {[%emt 0:02:46]} bxc6 {[%emt 0:00:41]} 22. Nb5 {[%emt 0:00:13]} Qd7 {[%emt 0:02:33]} 23. Nxd6 {[%emt 0:00:19]} Qxd6 {[%emt 0:00:05]} 24. Qd4 {[%emt 0:00:28]} 1-0

[Event "37th Zalakaros Festival 2018"]
[Site "Zalakaros"]
[Date "2018.05.29"]
[Round "5"]
[White "Pribelszky, Bence"]
[Black "Polajzer, Danilo"]
[Result "1-0"]
[ECO "B32"]
[WhiteElo "2187"]
[BlackElo "2273"]
[Annotator "NA"]
[PlyCount "79"]
[EventDate "2018.??.??"]
[EventType "swiss"]
[EventCountry "HUN"]
[SourceTitle "playchess.com"]
[Source "ChessBase"]
[SourceQuality "1"]
[TimeControl "40/5400+30:1800+30"]

1. e4 {[%emt 0:00:04]} c5 {[%emt 0:01:44]} 2. Nf3 {[%emt 0:00:09]} Nc6 {[%emt 0:00:03]} 3. d4 {[%emt 0:00:10]} cxd4 {[%emt 0:00:11]} 4. Nxd4 {[%emt 0:00:11]} e5 {[%emt 0:00:07]} 5. Nb5 {[%emt 0:00:11]} d6 {[%emt 0:00:33]} 6. N1c3 {[%emt 0:00:25]} a6 {[%emt 0:00:13]} 7. Na3 {[%emt 0:00:22]} b5 {[%emt 0:00:12]} 8. Nd5 {[%emt 0:00:44]} Nce7 {[%emt 0:00:14]} 9. c4 {[%emt 0:12:08]} Nxd5 {[%emt 0:00:37]} 10. exd5 {[%emt 0:10:27]} bxc4 {[%emt 0:02:42]} 11. Bxc4 {[%emt 0:04:01]} Be7 {[%emt 0:02:08]} 12. O-O {[%emt 0:02:33]} Nf6 {[%emt 0:00:45]} 13. Nc2 {[%emt 0:07:52]} O-O {[%emt 0:02:32]} 14. Qd3 {[%emt 0:09:42]} a5 {[%emt 0:29:39]} 15. b3 {[%emt 0:04:49]} Nd7 {[%emt 0:03:10]} 16. Ne3 {[%emt 0:07:10]} Nc5 {[%emt 0:16:18]} 17. Qe2 {[%emt 0:07:55]} f5 {[%emt 0:00:05]} 18. f3 Qb6 {[%emt 0:16:39]} 19. Kh1 {[%emt 0:06:31]} Bd7 {[%emt 0:05:01]} 20. Ba3 {[%emt 0:03:30]} f4 {[%emt 0:02:14]} 21. Nd1 {[%emt 0:03:27]} Bf6 {[%emt 0:03:06]} 22. Rc1 {[%emt 0:02:32]} e4 {[%emt 0:07:41]} 23. fxe4 {[%emt 0:02:54]} Be5 {[%emt 0:00:21]} 24. Qf2 {[%emt 0:05:11]} Bg4 {[%emt 0:01:01]} 25. Bxc5 {[%emt 0:06:32]} dxc5 {[%emt 0:00:35]} 26. Ne3 {[%emt 0:02:16]} Bd4 {[%emt 0:01:53]} 27. Rce1 {[%emt 0:00:40]} g5 {[%emt 0:01:31]} 28. Nxg4 {[%emt 0:00:54]} Bxf2 {[%emt 0:00:16]} 29. Rxf2 {[%emt 0:00:38]} Rae8 {[%emt 0:00:42]} 30. e5 {[%emt 0:00:30]} h5 {[%emt 0:00:19]} 31. d6+ {[%emt 0:00:29]} Kg7 {[%emt 0:00:14]} 32. Nf6 {[%emt 0:00:28]} Rxe5 {[%emt 0:02:48]} 33. Nxh5+ {[%emt 0:00:32]} Kh6 {[%emt 0:00:47]} 34. Rxe5 {[%emt 0:00:13]} Kxh5 {[%emt 0:00:01]} 35. Rd2 {[%emt 0:00:46]} Qb4 {[%emt 0:01:00]} 36. Rdd5 {[%emt 0:00:26]} Rg8 {[%emt 0:00:26]} 37. d7 {[%emt 0:00:30]} Qc3 {[%emt 0:00:30]} 38. Be2+ {[%emt 0:00:35]} Kg6 {[%emt 0:00:34]} 39. Rd6+ {[%emt 0:00:29]} Kg7 {[%emt 0:00:33]} 40. Re7+ {[%emt 0:00:00]} 1-0

[Event "37th Zalakaros Festival 2018"]
[Site "Zalakaros"]
[Date "2018.05.29"]
[Round "5"]
[White "Pasti, Aron"]
[Black "Kernazhitsky, Leonid"]
[Result "1-0"]
[ECO "B30"]
[WhiteElo "2064"]
[BlackElo "2250"]
[Annotator "NA"]
[PlyCount "89"]
[EventDate "2018.??.??"]
[EventType "swiss"]
[EventCountry "HUN"]
[SourceTitle "playchess.com"]
[Source "ChessBase"]
[SourceQuality "1"]
[TimeControl "40/5400+30:1800+30"]

1. e4 {[%emt 0:00:05]} c5 {[%emt 0:03:34]} 2. Nf3 {[%emt 0:00:10]} Nc6 {[%emt 0:00:22]} 3. c4 {[%emt 0:00:04]} d6 {[%emt 0:03:24]} 4. d4 {[%emt 0:03:41]} Bg4 {[%emt 0:03:18]} 5. d5 {[%emt 0:02:43]} Nd4 {[%emt 0:03:22]} 6. Qa4+ {[%emt 0:06:20]} Bd7 {[%emt 0:00:50]} 7. Qd1 {[%emt 0:00:08]} Nxf3+ {[%emt 0:00:28]} 8. Qxf3 {[%emt 0:00:06]} g6 {[%emt 0:00:07]} 9. Be2 {[%emt 0:01:25]} Bg7 {[%emt 0:02:08]} 10. O-O {[%emt 0:02:30]} Nf6 {[%emt 0:00:11]} 11. Nc3 {[%emt 0:00:13]} O-O {[%emt 0:00:24]} 12. Qg3 {[%emt 0:01:54]} Ne8 {[%emt 0:08:28]} 13. Bg4 {[%emt 0:13:24]} Nc7 {[%emt 0:01:37]} 14. Bxd7 {[%emt 0:00:10]} Qxd7 {[%emt 0:00:09]} 15. f4 {[%emt 0:02:55]} b5 {[%emt 0:00:24]} 16. cxb5 {[%emt 0:03:06]} Nxb5 {[%emt 0:00:24]} 17. Bd2 {[%emt 0:04:04]} Nd4 {[%emt 0:01:39]} 18. Qd3 {[%emt 0:04:30]} Rab8 {[%emt 0:08:42]} 19. b3 {[%emt 0:02:03]} Rfc8 {[%emt 0:03:54]} 20. Rac1 {[%emt 0:05:47]} f5 {[%emt 0:11:31]} 21. Ne2 {[%emt 0:06:12]} fxe4 {[%emt 0:00:33]} 22. Qxe4 {[%emt 0:00:22]} Qf5 {[%emt 0:01:20]} 23. Qxf5 {[%emt 0:00:28]} gxf5 {[%emt 0:01:04]} 24. Nxd4 {[%emt 0:04:13]} Bxd4+ {[%emt 0:00:17]} 25. Kh1 {[%emt 0:00:04]} Kf7 {[%emt 0:01:20]} 26. Rfe1 {[%emt 0:00:06]} Bf6 {[%emt 0:07:34]} 27. Kg1 {[%emt 0:03:13]} c4 {[%emt 0:04:17]} 28. bxc4 {[%emt 0:03:13]} Rb2 {[%emt 0:00:10]} 29. Bc3 {[%emt 0:00:32]} Rxa2 {[%emt 0:04:45]} 30. Bxf6 {[%emt 0:00:08]} exf6 {[%emt 0:01:06]} 31. Re6 {[%emt 0:00:48]} Rg8 {[%emt 0:00:12]} 32. g3 {[%emt 0:00:16]} Rb8 {[%emt 0:00:25]} 33. Rxd6 {[%emt 0:01:16]} Rbb2 {[%emt 0:00:17]} 34. c5 {[%emt 0:03:38]} Rg2+ {[%emt 0:00:10]} 35. Kh1 {[%emt 0:00:17]} Rxh2+ {[%emt 0:00:09]} 36. Kg1 {[%emt 0:00:01]} Rag2+ {[%emt 0:01:25]} 37. Kf1 {[%emt 0:00:21]} Rf2+ {[%emt 0:03:58]} 38. Kg1 {[%emt 0:00:13]} Rhg2+ {[%emt 0:00:11]} 39. Kh1 {[%emt 0:00:05]} Rxg3 {[%emt 0:00:44]} 40. Rd7+ {[%emt 0:00:00]} Kg6 {[%emt 0:18:32]} 41. Rg1 {[%emt 0:00:23]} Rxg1+ {[%emt 0:09:16]} 42. Kxg1 {[%emt 0:02:35]} Rc2 {[%emt 0:00:20]} 43. c6 {[%emt 0:00:05]} a5 {[%emt 0:08:22]} 44. c7 {[%emt 0:02:53]} Kh5 {[%emt 0:04:02]} 45. d6 {[%emt 0:02:47]} 1-0

[Event "37th Zalakaros Festival 2018"]
[Site "Zalakaros"]
[Date "2018.05.31"]
[Round "7"]
[White "Radovanovic, Jovica"]
[Black "Virag, Balint"]
[Result "1-0"]
[ECO "A48"]
[WhiteElo "2311"]
[BlackElo "2065"]
[Annotator "NA RC"]
[PlyCount "75"]
[EventDate "2018.??.??"]
[EventType "swiss"]
[EventCountry "HUN"]
[SourceTitle "playchess.com"]
[Source "ChessBase"]
[SourceQuality "1"]
[TimeControl "40/5400+30:1800+30"]

1. d4 {[%emt 0:01:41]} Nf6 {[%emt 0:00:40]} 2. Nf3 {[%emt 0:00:11]} g6 {[%emt 0:00:09]} 3. c4 {[%emt 0:00:09]} Bg7 {[%emt 0:00:10]} 4. Nc3 {[%emt 0:00:52]} d5 {[%emt 0:00:08]} 5. cxd5 {[%emt 0:03:32]} Nxd5 {[%emt 0:00:03]} 6. Bd2 {[%emt 0:01:36]} Bg4 {[%emt 0:02:21]} 7. e4 {[%emt 0:16:41]} Bxf3 {[%emt 0:05:55]} 8. Qxf3 {[%emt 0:14:31]} Nb4 {[%emt 0:04:23]} 9. Rc1 {[%emt 0:09:21]} N8c6 {[%emt 0:01:47]} 10. d5 {[%emt 0:02:23]} Nd4 {[%emt 0:01:31]} 11. Qd1 {[%emt 0:00:05]} a5 {[%emt 0:13:00]} (11... O-O $142) 12. Nb5 {[%emt 0:04:23]} (12. Be3 $16 c5 13. Qa4+ Kf8 14. Bc4) 12... Nxb5 {[%emt 0:03:46]} 13. Bxb5+ {[%emt 0:01:05]} c6 {[%emt 0:06:19]} 14. Bxb4 {[%emt 0:01:37]} cxb5 {[%emt 0:01:18]} 15. Bc3 {[%emt 0:00:06]} Bxc3+ {[%emt 0:00:55]} 16. Rxc3 {[%emt 0:00:11]} O-O {[%emt 0:00:16]} 17. O-O {[%emt 0:05:15]} Qd6 {[%emt 0:04:27]} 18. Qc2 {[%emt 0:06:00]} f5 $11 {[%emt 0:01:24]} 19. Re1 {[%emt 0:03:51]} e5 {[%emt 0:02:45]} 20. exf5 {[%emt 0:13:08]} gxf5 {[%emt 0:01:32]} 21. Qe2 {[%emt 0:02:08]} Qxd5 {[%emt 0:04:35]} 22. Qxe5 {[%emt 0:00:24]} Qxe5 {[%emt 0:00:23]} 23. Rxe5 {[%emt 0:00:01]} b4 {[%emt 0:01:08]} 24. Rg3+ {[%emt 0:03:00]} Kh8 {[%emt 0:00:01]} 25. h4 {[%emt 0:00:16]} f4 {[%emt 0:02:36]} 26. Rg4 {[%emt 0:05:08]} Rfd8 {[%emt 0:01:53]} 27. Rxf4 {[%emt 0:01:48]} Rd1+ {[%emt 0:00:12]} 28. Kh2 {[%emt 0:00:04]} Rd2 {[%emt 0:00:05]} 29. Re7 {[%emt 0:02:55]} Rxb2 {[%emt 0:00:17]} 30. Rff7 {[%emt 0:00:10]} Rxa2 {[%emt 0:00:06]} 31. Rxh7+ {[%emt 0:00:03]} Kg8 {[%emt 0:00:07]} 32. Reg7+ {[%emt 0:00:13]} Kf8 {[%emt 0:00:07]} 33. Rxb7 {[%emt 0:00:04]} Kg8 {[%emt 0:00:07]} 34. Rbg7+ {[%emt 0:00:13]} Kf8 {[%emt 0:00:09]} 35. h5 {[%emt 0:01:36]} Rxf2 {[%emt 0:01:50]} 36. h6 {[%emt 0:00:45]} Ke8 {[%emt 0:00:06]} 37. Rg8+ {[%emt 0:00:28]} Rf8 {[%emt 0:00:06]} 38. Rxf8+ {[%emt 0:00:07] Ra6} 1-0

[Event "37th Zalakaros Festival 2018"]
[Site "Zalakaros"]
[Date "2018.05.31"]
[Round "7"]
[White "Marosi, Levente"]
[Black "Tompa, Janos"]
[Result "1-0"]
[ECO "B48"]
[WhiteElo "2277"]
[BlackElo "2372"]
[Annotator "NA RC"]
[PlyCount "45"]
[EventDate "2018.??.??"]
[EventType "swiss"]
[EventCountry "HUN"]
[SourceTitle "playchess.com"]
[Source "ChessBase"]
[SourceQuality "1"]
[TimeControl "40/5400+30:1800+30"]

1. e4 {[%emt 0:00:03]} c5 {[%emt 0:00:52]} 2. Nf3 {[%emt 0:00:13]} e6 {[%emt 0:00:23]} 3. d4 {[%emt 0:00:13]} cxd4 {[%emt 0:00:07]} 4. Nxd4 {[%emt 0:00:05]} Nc6 {[%emt 0:00:17]} 5. Nc3 {[%emt 0:00:22]} Qc7 {[%emt 0:00:54]} 6. Be3 {[%emt 0:00:28]} a6 {[%emt 0:01:13]} 7. Qf3 {[%emt 0:01:18]} Nf6 {[%emt 0:02:31]} 8. O-O-O {[%emt 0:04:59]} b5 {[%emt 0:02:57]} 9. e5 {[%emt 0:11:19]} b4 {[%emt 0:34:23]} 10. exf6 {[%emt 0:13:10]} bxc3 {[%emt 0:00:27]} 11. Bf4 {[%emt 0:11:19]} ({White should play} 11. Nxc6 $14 cxb2+ 12. Kxb2 Qxc6 13. Qxc6 dxc6 14. Bd4) 11... cxb2+ {[%emt 0:02:08]} 12. Kb1 {[%emt 0:00:33]} Nxd4 {[%emt 0:04:59]} 13. Rxd4 $11 {[%emt 0:00:30]} Qb7 {[%emt 0:00:06]} 14. Qc3 {[%emt 0:10:54]} gxf6 {[%emt 0:06:06]} 15. Rc4 {[%emt 0:03:35]} Be7 {[%emt 0:05:55]} 16. Be2 {[%emt 0:10:33]} Bd8 {[%emt 0:09:47]} 17. Bd6 {[%emt 0:03:33]} Qb6 {[%emt 0:02:36]} 18. Bf3 {[%emt 0:02:42]} Bb7 {[%emt 0:01:16]} 19. Bc5 {[%emt 0:00:29]} Qc7 {[%emt 0:12:51]} 20. Bd4 {[%emt 0:00:28]} Qb8 {[%emt 0:01:41]} 21. Rb4 {[%emt 0:02:27]} Ba5 {[%emt 0:01:16]} 22. Bxb7 {[%emt 0:00:51]} e5 {[%emt 0:01:05]} 23. Re1 {[%emt 0:07:03]} 1-0

[Event "37th Zalakaros Festival 2018"]
[Site "Zalakaros"]
[Date "2018.05.31"]
[Round "7"]
[White "Kareva, Natalia"]
[Black "Csonka, Attila Istvan"]
[Result "0-1"]
[ECO "E12"]
[WhiteElo "2206"]
[BlackElo "2372"]
[Annotator "NA RC"]
[PlyCount "78"]
[EventDate "2018.??.??"]
[EventType "swiss"]
[EventCountry "HUN"]
[SourceTitle "playchess.com"]
[Source "ChessBase"]
[SourceQuality "1"]
[TimeControl "40/5400+30:1800+30"]

1. Nf3 {[%emt 0:00:11]} Nf6 {[%emt 0:00:40]} 2. d4 {[%emt 0:00:47]} e6 {[%emt 0:00:07]} 3. c4 {[%emt 0:00:13]} b6 {[%emt 0:00:08]} 4. a3 {[%emt 0:01:33]} Ba6 {[%emt 0:00:21]} 5. e3 {[%emt 0:02:30]} Be7 {[%emt 0:01:42]} 6. Bd3 {[%emt 0:00:38]} c5 {[%emt 0:00:46] E12: Queen's Indian: Unusual White 4th moves, 4 a3, 4 Nc3 Bb7 5 a3 and 4 Nc3 Bb7} (6... d5 7. cxd5 Bxd3 8. Qxd3 exd5 9. O-O O-O 10. Nbd2 Nbd7 11. b3 Bd6 12. Bb2 Qe7 13. Rfc1 Rfe8 14. Rc2 {0-1 (40) Miton,K (2648)-Ivanchuk,V (2762) Montreal 2007}) 7. d5 {[%emt 0:07:21]} exd5 {[%emt 0:09:23]} 8. cxd5 {[%emt 0:00:06]} Bxd3 {[%emt 0:00:07]} 9. Qxd3 {[%emt 0:00:06]} d6 {[%emt 0:00:05]} 10. O-O {[%emt 0:03:02]} O-O {[%emt 0:03:02]} 11. e4 {[%emt 0:02:46]} Nbd7 {[%emt 0:02:03]} 12. h3 $146 {[%emt 0:00:58]} ({Predecessor:} 12. Nc3 Re8 13. h3 Bf8 {1-0 (41) Jovanic,O (2541)-Kizov,A (2397) Porto San Giorgio 2009}) 12... Re8 {[%emt 0:01:51]} 13. Bf4 {[%emt 0:03:28]} Nf8 {[%emt 0:05:32]} 14. Nc3 {[%emt 0:02:41]} Ng6 {[%emt 0:05:13]} 15. Bh2 {[%emt 0:00:44]} Nd7 {[%emt 0:05:09]} 16. Rad1 {[%emt 0:05:18]} a6 {[%emt 0:03:36]} 17. a4 {[%emt 0:02:06]} Qb8 {[%emt 0:01:00]} 18. Nd2 {[%emt 0:07:56]} Bf6 {[%emt 0:02:30]} 19. f4 {[%emt 0:00:15]} Ra7 {[%emt 0:04:37]} 20. Nf3 {[%emt 0:01:41]} b5 {[%emt 0:02:02]} 21. axb5 $11 {[%emt 0:16:46]} Bxc3 {[%emt 0:02:26]} 22. bxc3 {[%emt 0:00:26]} axb5 {[%emt 0:00:31]} 23. Rfe1 {[%emt 0:01:11]} Ra3 {[%emt 0:05:16]} 24. Qd2 {[%emt 0:04:33]} Nb6 {[%emt 0:10:56]} 25. e5 {[%emt 0:09:42]} Nc4 {[%emt 0:00:37]} 26. Qc1 {[%emt 0:00:38]} f5 {[%emt 0:08:06]} 27. Nd2 {[%emt 0:03:05]} Ra4 {[%emt 0:01:30]} 28. Nxc4 {[%emt 0:04:27]} Rxc4 {[%emt 0:00:08]} 29. exd6 {[%emt 0:00:06]} Rxe1+ {[%emt 0:00:35]} 30. Rxe1 {[%emt 0:00:04]} Qxd6 {[%emt 0:00:09]} 31. Qb1 {[%emt 0:01:10]} Qxd5 {[%emt 0:01:47]} 32. Rd1 {[%emt 0:08:42]} Qe4 {[%emt 0:00:45]} 33. Qxb5 {[%emt 0:00:06]} Rxc3 {[%emt 0:01:37]} 34. Qb8+ {[%emt 0:03:46]} Kf7 {[%emt 0:01:07]} 35. Qc7+ {[%emt 0:00:42]} Ne7 {[%emt 0:00:17]} 36. Qe5 {[%emt 0:00:18]} Re3 {[%emt 0:03:53]} 37. Qxe4 {[%emt 0:01:38]} Rxe4 {[%emt 0:00:07]} 38. Kf2 {[%emt 0:00:05]} Ke6 {[%emt 0:00:39]} 39. Rd8 {[%emt 0:00:42]} c4 {[%emt 0:00:22]} 0-1

[Event "37th Zalakaros Festival 2018"]
[Site "Zalakaros"]
[Date "2018.06.01"]
[Round "8"]
[White "Tompa, Janos"]
[Black "Biro, Sandor"]
[Result "1-0"]
[ECO "B00"]
[WhiteElo "2372"]
[BlackElo "2191"]
[Annotator "NA"]
[PlyCount "71"]
[EventDate "2018.??.??"]
[EventType "swiss"]
[EventCountry "HUN"]
[SourceTitle "playchess.com"]
[Source "ChessBase"]
[SourceQuality "1"]
[TimeControl "40/5400+30:1800+30"]

1. e4 {[%emt 0:00:23]} Nc6 {[%emt 0:02:11]} 2. Nf3 {[%emt 0:00:13]} e6 {[%emt 0:00:34]} 3. d3 {[%emt 0:01:32]} d5 {[%emt 0:00:50]} 4. Nbd2 {[%emt 0:00:07]} Nge7 {[%emt 0:07:29]} 5. Be2 {[%emt 0:02:58]} Ng6 {[%emt 0:00:48]} 6. g3 {[%emt 0:00:07]} e5 {[%emt 0:11:58]} 7. h4 {[%emt 0:00:54]} h6 {[%emt 0:01:20]} 8. c3 {[%emt 0:02:09]} a5 $11 {[%emt 0:02:46]} 9. h5 {[%emt 0:11:59]} Nge7 {[%emt 0:00:40]} 10. Nh4 {[%emt 0:02:48]} Qd6 {[%emt 0:10:15]} 11. Bf3 {[%emt 0:03:06]} Be6 {[%emt 0:03:59]} 12. O-O {[%emt 0:00:21]} O-O-O {[%emt 0:05:41]} 13. Bg4 {[%emt 0:06:32]} Kb8 {[%emt 0:07:47]} 14. Re1 {[%emt 0:05:13]} Rg8 {[%emt 0:15:26]} 15. a3 {[%emt 0:03:39]} g6 {[%emt 0:03:00]} 16. hxg6 {[%emt 0:10:22]} Nxg6 {[%emt 0:02:42]} 17. Bxe6 {[%emt 0:21:18]} Qxe6 {[%emt 0:01:39]} 18. Nxg6 {[%emt 0:00:40]} Rxg6 {[%emt 0:00:18]} 19. Qf3 {[%emt 0:00:40]} dxe4 {[%emt 0:03:29]} 20. Nxe4 {[%emt 0:01:44]} f5 {[%emt 0:01:06]} 21. Nd2 {[%emt 0:00:05]} Qd7 {[%emt 0:04:27]} 22. Nc4 {[%emt 0:03:23]} Bg7 {[%emt 0:00:53]} 23. Ne3 {[%emt 0:04:48]} f4 {[%emt 0:00:41]} 24. Qe4 {[%emt 0:00:57]} Qxd3 {[%emt 0:04:34]} 25. Qxd3 {[%emt 0:00:27]} Rxd3 {[%emt 0:00:06]} 26. Nf1 {[%emt 0:01:10]} h5 {[%emt 0:02:17]} 27. Kh2 {[%emt 0:01:03]} Bh6 {[%emt 0:02:37]} 28. Kh3 {[%emt 0:00:47]} Rg5 {[%emt 0:02:55]} 29. Bd2 {[%emt 0:04:43]} h4 {[%emt 0:01:01]} 30. Kxh4 {[%emt 0:02:12]} Ne7 {[%emt 0:00:08]} 31. Rad1 {[%emt 0:00:13]} Nf5+ {[%emt 0:01:22]} 32. Kh3 {[%emt 0:00:19]} Rd6 {[%emt 0:00:56]} 33. gxf4 {[%emt 0:01:52]} Rd3+ {[%emt 0:00:34]} 34. Be3 {[%emt 0:01:44]} Rxd1 {[%emt 0:00:22]} 35. Rxd1 {[%emt 0:00:04]} exf4 {[%emt 0:00:13]} 36. Rd8# {[%emt 0:00:12]} 1-0

[Event "37th Zalakaros Festival 2018"]
[Site "Zalakaros"]
[Date "2018.06.01"]
[Round "8"]
[White "Ostovic, Matija"]
[Black "Marosi, Levente"]
[Result "1/2-1/2"]
[ECO "A53"]
[WhiteElo "2352"]
[BlackElo "2277"]
[Annotator "NA"]
[PlyCount "103"]
[EventDate "2018.??.??"]
[EventType "swiss"]
[EventCountry "HUN"]
[SourceTitle "playchess.com"]
[Source "ChessBase"]
[SourceQuality "1"]
[TimeControl "40/5400+30:1800+30"]

1. d4 {[%emt 0:00:14]} Nf6 {[%emt 0:02:19]} 2. c4 {[%emt 0:00:07]} d6 {[%emt 0:00:55]} 3. Nf3 {[%emt 0:00:23]} g6 {[%emt 0:00:16]} 4. g3 {[%emt 0:00:07]} Bg7 {[%emt 0:00:10]} 5. Bg2 {[%emt 0:00:10]} Nbd7 {[%emt 0:00:24]} 6. O-O {[%emt 0:00:17]} O-O {[%emt 0:00:10]} 7. Nc3 {[%emt 0:00:10]} c6 {[%emt 0:00:34]} 8. Qc2 {[%emt 0:00:55]} e5 {[%emt 0:02:57]} 9. Rd1 {[%emt 0:01:10]} Re8 {[%emt 0:02:12]} 10. dxe5 {[%emt 0:04:31]} dxe5 {[%emt 0:00:33]} 11. Ng5 {[%emt 0:00:33]} Qc7 {[%emt 0:12:03]} 12. Nge4 {[%emt 0:06:51]} Nxe4 {[%emt 0:04:44]} 13. Nxe4 {[%emt 0:00:18] LiveBook: 3 Games} Nf6 {[%emt 0:00:27]} 14. Nd6 {[%emt 0:06:35]} Rd8 {[%emt 0:00:23]} 15. c5 $11 {[%emt 0:05:40]} Be6 {[%emt 0:16:48]} 16. Bg5 {[%emt 0:04:52]} h6 {[%emt 0:01:13]} 17. Bxf6 {[%emt 0:01:24]} Bxf6 {[%emt 0:00:02]} 18. h4 {[%emt 0:00:21]} h5 {[%emt 0:03:53]} 19. Rd2 {[%emt 0:06:41]} Be7 {[%emt 0:12:26]} 20. Rad1 {[%emt 0:01:19]} Bxd6 {[%emt 0:12:34]} 21. cxd6 {[%emt 0:00:48]} Qa5 {[%emt 0:01:22]} 22. Qe4 {[%emt 0:13:46]} Rd7 {[%emt 0:03:18]} 23. b4 {[%emt 0:11:17]} Qb5 {[%emt 0:00:37]} 24. Qe3 {[%emt 0:03:48]} a5 {[%emt 0:04:42]} 25. bxa5 {[%emt 0:01:45]} Rxa5 {[%emt 0:02:23]} 26. Be4 {[%emt 0:01:19]} Kg7 {[%emt 0:00:54]} 27. Qg5 {[%emt 0:10:23]} Qb4 {[%emt 0:03:46]} 28. Bb1 {[%emt 0:01:06]} e4 {[%emt 0:03:06]} 29. Qf4 {[%emt 0:00:52]} Bd5 {[%emt 0:00:38]} 30. Qe5+ {[%emt 0:03:08]} f6 {[%emt 0:00:12]} 31. Qe8 {[%emt 0:00:27]} Qxd6 {[%emt 0:02:38]} 32. Bxe4 {[%emt 0:00:16]} Rf7 {[%emt 0:02:02]} 33. Bxd5 {[%emt 0:02:17]} Rxd5 {[%emt 0:00:39]} 34. Rxd5 {[%emt 0:00:15]} cxd5 {[%emt 0:00:02]} 35. Qb5 {[%emt 0:01:16]} Rd7 {[%emt 0:00:30]} 36. e3 {[%emt 0:00:33]} Qc6 {[%emt 0:01:36]} 37. Qb3 {[%emt 0:03:53]} f5 {[%emt 0:01:21]} 38. Qb2+ {[%emt 0:00:57]} Qf6 {[%emt 0:00:38]} 39. Qxf6+ {[%emt 0:00:34]} Kxf6 {[%emt 0:00:02]} 40. Rb1 {[%emt 0:00:00]} Kg7 {[%emt 0:02:51]} 41. Rb6 {[%emt 0:03:01]} Kh6 {[%emt 0:01:06]} 42. Kg2 {[%emt 0:01:28]} d4 {[%emt 0:05:36]} 43. exd4 {[%emt 0:01:18]} Rxd4 {[%emt 0:00:01]} 44. Rxb7 {[%emt 0:00:34]} Ra4 {[%emt 0:00:03]} 45. Rb2 {[%emt 0:00:30]} f4 {[%emt 0:00:03]} 46. Kf3 {[%emt 0:03:35]} fxg3 {[%emt 0:00:33]} 47. fxg3 {[%emt 0:00:26]} g5 {[%emt 0:01:54]} 48. Rb6+ {[%emt 0:03:13]} Kg7 {[%emt 0:00:08]} 49. hxg5 {[%emt 0:00:05]} Rxa2 {[%emt 0:00:15]} 50. Rh6 {[%emt 0:00:16]} Ra5 {[%emt 0:00:23]} 51. Rxh5 {[%emt 0:00:13]} Kg6 {[%emt 0:00:20]} 52. Rh8 1/2-1/2